bitfinex-derivatives/quotes_ETHF0:USTF0_20251119
["timestamp","ask_amount","ask_price","bid_price","bid_amount"]
[1763593152361,0.00502108,2986.3,2986.0,3.45401709]
[1763593154557,0.00502108,2986.3,2986.2,0.2434]
[1763593156763,0.25522108,2986.3,2986.2,0.2434]
[1763593157370,0.00502108,2986.3,2986.2,0.2434]
[1763593160765,3.458,2987.1,2987.0,0.2434]
[1763593161164,3.2078,2987.1,2987.0,0.3885]
[1763593162570,0.1498,2987.0,2986.5,0.1451]
[1763593162874,0.2502,2986.4,2986.3,0.2434]
[1763593163076,0.2502,2986.1,2986.0,0.00281709]
[1763593166275,0.2502,2986.1,2986.0,0.24621709]
[1763593166579,3.2078,2986.9,2986.0,3.60141709]
[1763593168376,3.2078,2986.9,2986.8,0.2477]
[1763593168573,3.4547,2986.9,2986.8,0.2477]
[1763593168881,0.2469,2986.9,2986.8,0.2477]
[1763593170575,3.2078,2987.2,2986.8,0.2477]
[1763593170782,0.2469,2986.9,2986.8,0.2477]
[1763593170974,0.2469,2986.9,2986.5,0.1474]
[1763593171175,0.2469,2986.9,2986.3,3.2078]
[1763593171982,0.1415,2987.0,2986.8,0.2477]
[1763593172280,0.2419,2987.0,2986.9,0.2413]
[1763593174185,0.2419,2986.6,2986.5,0.2413]
[1763593174383,0.2419,2986.1,2986.0,3.21061709]
[1763593174682,3.99282,2986.1,2986.0,0.00281709]
[1763593174872,0.78502,2986.1,2986.0,0.00281709]
[1763593175076,1.56461057,2986.1,2986.0,0.00281709]
[1763593175380,0.78502,2986.1,2986.0,0.00281709]
[1763593175573,1.56447573,2986.1,2986.0,0.00281709]
[1763593175982,0.78502,2986.1,2986.0,0.00281709]
[1763593176885,0.78502,2986.1,2986.0,0.24411709]
[1763593177083,0.2419,2986.1,2986.0,0.24411709]
[1763593177876,0.2419,2986.1,2986.0,0.00281709]
[1763593178080,1.02147935,2986.1,2986.0,0.00281709]
[1763593178383,0.78506,2985.9,2985.8,0.00502108]
[1763593178591,0.78506,2985.9,2985.0,1.1381]
[1763593178883,0.2419,2985.1,2985.0,0.993]
[1763593179090,0.2419,2985.1,2984.8,3.2078]
[1763593179283,0.2419,2984.9,2984.8,3.2078]
[1763593179690,0.24562572,2984.9,2984.8,3.21145059]
[1763593179885,0.24562572,2984.9,2984.8,0.00365059]
[1763593180390,0.00372572,2984.9,2984.8,0.24495059]
[1763593180590,0.00372572,2984.9,2984.8,3.45275059]
[1763593181779,0.00372572,2984.9,2984.8,11.24401201]
[1763593181986,0.1452,2986.0,2985.0,0.3781]
[1763593182185,0.2419,2985.9,2985.8,3.2078]
[1763593182787,0.2419,2985.9,2985.5,3.2078]
[1763593182987,0.24473042,2985.9,2985.2,3.2078]
[1763593183890,0.24473042,2985.9,2985.8,0.2413]
[1763593184503,0.00283042,2985.9,2985.8,0.2413]
[1763593186293,0.24473042,2985.9,2985.8,0.2413]
[1763593186490,0.00283042,2985.9,2985.8,0.2413]
[1763593189693,0.24473042,2985.9,2985.6,3.2078]
[1763593189996,0.2419,2985.7,2985.6,3.2078]
[1763593190496,0.2419,2985.7,2985.6,3.4491]
[1763593191095,0.2419,2985.7,2985.6,3.2078]
[1763593193198,0.00283042,2985.9,2985.6,3.4491]
[1763593193997,0.00283042,2985.9,2985.6,0.2413]
[1763593195101,0.2419,2985.7,2985.6,3.4491]
[1763593195899,0.24473042,2985.9,2985.8,0.2413]
[1763593196099,0.24473042,2985.9,2985.6,3.2078]
[1763593196601,0.24473042,2985.9,2985.8,0.2413]
[1763593198005,0.00283042,2985.9,2985.8,0.2413]
[1763593199000,0.24473042,2985.9,2985.8,0.2413]
[1763593200702,0.00283042,2985.9,2985.8,0.2413]
[1763593202415,0.54304,2986.6,2986.5,0.3911]
[1763593202610,0.77990191,2986.7,2986.6,0.2501]
[1763593202813,1.01568588,2986.7,2986.3,0.00502108]
[1763593203014,0.2358,2986.7,2986.3,0.00502108]
[1763593203207,4.88734101,2986.9,2986.8,0.2501]
[1763593203403,5.43469326,2986.9,2986.8,0.2501]
[1763593203721,4.53393225,2986.9,2986.8,0.2501]
[1763593204011,4.76973225,2986.9,2986.5,0.141]
[1763593204209,0.2358,2986.6,2986.5,0.2501]
[1763593204414,0.2358,2986.4,2986.3,0.00502108]
[1763593204708,4.65452936,2986.9,2986.3,0.25512108]
[1763593204912,0.78027027,2986.8,2986.7,0.2501]
[1763593205308,0.00298835,2986.9,2986.8,0.2501]
[1763593207513,3.2078,2987.9,2987.8,0.2501]
[1763593207819,3.2078,2988.3,2988.2,0.2501]
[1763593208125,3.98606442,2988.3,2988.2,0.2501]
[1763593208309,0.90076101,2988.6,2988.2,0.2501]
[1763593208310,3.2078,2988.6,2988.2,0.2501]
[1763593208614,3.2078,2988.6,2988.2,0.25302636]
[1763593208812,3.2078,2988.9,2988.5,0.3911]
[1763593209111,0.2358,2988.6,2988.5,0.2501]
[1763593210714,3.2078,2988.9,2988.5,0.2501]
[1763593211214,3.2078,2988.9,2988.8,0.2501]
[1763593212315,3.2078,2989.3,2988.8,0.2501]
[1763593212822,3.2078,2989.3,2989.2,0.2501]
[1763593213024,0.1458,2989.5,2989.2,0.2501]
[1763593213419,3.2078,2989.3,2989.2,0.2501]
[1763593214115,3.4436,2989.3,2989.2,0.2501]
[1763593214316,3.2078,2989.3,2989.2,0.2501]
[1763593214716,3.4436,2989.3,2989.2,0.2501]
[1763593215017,3.2078,2989.9,2989.2,0.2501]
[1763593215415,3.2078,2990.2,2989.5,0.141]
[1763593215724,3.2078,2989.9,2989.8,0.2501]
[1763593215919,3.4436,2989.9,2989.8,0.2501]
[1763593216114,0.2358,2989.9,2989.8,0.2501]
[1763593216317,3.4436,2990.1,2990.0,0.2501]
[1763593216818,3.4436,2990.1,2989.6,0.00502108]
[1763593217723,0.2358,2989.7,2989.6,0.00502108]
[1763593218316,0.2358,2989.2,2989.1,3.2078]
[1763593219524,0.00502108,2989.4,2988.9,0.00502108]
[1763593219525,0.3816,2989.0,2988.9,0.00502108]
[1763593219719,0.3816,2988.5,2988.4,3.2078]
[1763593219925,0.2358,2988.3,2988.2,0.25302636]
[1763593221520,0.1458,2989.0,2988.4,0.2501]
[1763593221730,3.2078,2988.9,2988.8,0.2501]
[1763593221929,3.2078,2989.3,2988.8,0.2501]
[1763593222331,0.2358,2988.9,2988.8,0.2501]
[1763593222828,0.2358,2988.9,2988.5,0.141]
[1763593223531,0.2358,2988.9,2988.2,0.00292636]
[1763593224030,3.3536,2989.0,2988.2,0.00292636]
[1763593224233,3.2078,2989.0,2988.9,0.2501]
[1763593225133,3.4436,2989.0,2988.9,0.2501]
[1763593225533,3.4436,2989.0,2988.5,0.141]
[1763593226130,0.00502108,2989.4,2988.9,0.2424]
[1763593227529,0.2511,2989.0,2988.9,0.2424]
[1763593228124,3.21282108,2989.4,2988.9,0.2424]
[1763593229327,0.2511,2989.0,2988.9,0.2424]
[1763593231235,0.2511,2989.0,2988.7,3.2078]
[1763593231929,0.2371,2988.3,2988.2,3.21072636]
[1763593232432,0.2371,2988.3,2988.2,3.46162636]
[1763593232735,0.2371,2988.3,2988.2,3.21072636]
[1763593234036,0.77982,2988.3,2988.2,3.21072636]
[1763593234727,3.3581,2988.5,2987.9,2.55601198]
[1763593234932,0.3874,2987.5,2987.4,3.2078]
[1763593235829,0.39023244,2987.5,2987.1,3.2078]
[1763593236032,3.59803244,2987.5,2987.4,0.00390973]
[1763593237840,0.2371,2987.3,2987.2,0.00502108]
[1763593238339,0.78,2987.3,2987.2,0.00502108]
[1763593238534,0.78,2987.3,2986.5,3.3454]
[1763593238734,0.1503,2987.0,2986.5,3.34782566]
[1763593239441,3.2078,2987.1,2987.0,0.3885]
[1763593239632,3.2078,2987.1,2987.0,0.2509]
[1763593239938,3.4449,2987.1,2987.0,0.2509]
[1763593240341,3.2078,2987.1,2987.0,0.2509]
[1763593241040,3.2078,2987.1,2987.0,0.3885]
[1763593243832,3.2078,2987.2,2987.1,0.2509]
[1763593244938,0.1503,2987.0,2986.5,0.00744674]
[1763593245135,3.2078,2986.8,2986.7,0.2509]
[1763593245934,3.2078,2986.8,2986.5,0.14504674]
[1763593246138,3.2078,2986.8,2986.7,0.2509]
[1763593246934,3.2078,2987.1,2987.0,0.2509]
[1763593247240,3.2078,2987.1,2987.0,0.3885]
[1763593248641,3.4449,2987.1,2986.5,0.14504674]
[1763593249042,0.1503,2987.0,2986.5,0.14504674]
[1763593249341,3.2078,2987.1,2986.5,0.14504674]
[1763593251631,3.2078,2987.1,2987.0,0.3885]
[1763593252140,3.2078,2987.4,2987.3,0.2509]
[1763593252737,3.4449,2987.4,2987.3,0.2509]
[1763593255144,0.00283244,2987.5,2987.4,0.2509]
[1763593256840,0.23993244,2987.5,2987.4,0.2509]
[1763593257643,0.39023244,2987.5,2986.7,3.2078]
[1763593259452,0.39023244,2987.5,2986.7,4.99906142]
[1763593259847,3.2078,2987.3,2986.7,3.2078]
[1763593260738,3.2078,2987.3,2987.2,0.2509]
[1763593261150,3.4449,2987.3,2987.2,0.2509]
[1763593261351,3.04263364,2987.3,2987.2,0.2509]
[1763593261652,0.2371,2987.3,2987.2,0.2509]
[1763593263349,0.2371,2987.3,2986.8,1.79126142]
[1763593264050,0.2371,2987.3,2987.2,0.2466]
[1763593266246,3.4449,2987.3,2987.2,0.2466]
[1763593268851,3.4449,2987.3,2986.9,1.79126142]
[1763593270654,3.2078,2987.3,2987.2,0.2466]
[1763593270949,0.00283244,2987.5,2987.4,0.2466]
[1763593271349,0.00283244,2987.5,2987.4,5.24566142]
[1763593271756,0.00283244,2987.5,2987.4,3.4544]
[1763593271956,0.00283244,2987.5,2987.4,5.83746688]
[1763593272161,3.2078,2988.3,2987.6,0.2466]
[1763593272344,3.2078,2988.3,2987.5,0.1428]
[1763593272345,3.2078,2988.3,2988.2,0.2466]
[1763593272852,3.2078,2988.6,2988.5,0.3894]
[1763593273165,3.21049865,2988.6,2988.5,0.3894]
[1763593276756,3.45499865,2988.6,2988.3,0.00502108]
[1763593277153,3.45499865,2988.6,2988.5,0.2466]
[1763593277758,0.2445,2988.4,2988.3,0.25162108]
[1763593278847,0.2445,2988.4,2988.3,0.00502108]
[1763593280262,3.4523,2988.4,2988.3,0.00502108]
[1763593280961,0.2445,2988.4,2988.3,0.25162108]
[1763593282459,0.24719865,2988.6,2988.5,0.2466]
[1763593282661,0.00269865,2988.6,2988.5,0.3894]
[1763593283465,0.24719865,2988.6,2988.5,0.2466]
[1763593284867,0.24719865,2988.6,2988.3,0.00502108]
[1763593285363,0.24719865,2988.6,2988.5,0.2466]
[1763593286466,0.00269865,2988.6,2988.5,0.3838]
[1763593286763,0.2399,2988.8,2988.7,0.2485]
[1763593287559,0.2399,2988.6,2988.5,0.3857]
[1763593287760,0.24120499,2988.6,2988.5,0.38892557]
[1763593292365,0.00130499,2988.6,2988.5,0.38892557]
[1763593292564,0.89925013,2990.3,2988.5,25.57953026]
[1763593292764,3.2078,2990.4,2989.6,3.2078]
[1763593292962,0.2475,2989.7,2989.6,3.2078]
[1763593293168,0.3959,2989.0,2988.9,3.2078]
[1763593293370,0.2475,2988.6,2988.5,0.00322557]
[1763593300671,0.00502108,2988.8,2988.5,0.00322557]
[1763593300972,0.2475,2988.6,2988.5,0.00322557]
[1763593302477,0.2475,2988.6,2988.5,1.78953026]
[1763593303470,0.00502108,2988.8,2988.5,1.78953026]
[1763593304573,0.2475,2988.6,2988.5,1.78953026]
[1763593304777,0.2475,2988.6,2988.5,0.00322557]
[1763593306776,0.00502108,2988.8,2988.5,1.78953026]
[1763593306977,0.2475,2988.7,2988.6,1.78294697]
[1763593307173,0.2475,2988.6,2988.5,1.78617254]
[1763593311673,0.00502108,2988.8,2988.5,0.00322557]
[1763593311878,0.1484,2989.5,2988.7,5.59086688]
[1763593312074,0.1484,2989.5,2989.4,3.2078]
[1763593312270,0.1452,2990.0,2989.4,3.2078]
[1763593312482,0.1452,2990.0,2989.5,1.77871641]
[1763593312882,0.1452,2990.0,2989.8,3.2078]
[1763593313880,0.1452,2990.5,2989.8,5.59086688]
[1763593314077,0.3927,2990.5,2990.4,3.2078]
[1763593314276,0.2475,2990.1,2990.0,3.2078]
[1763593314973,0.3959,2990.0,2989.9,3.26102108]
[1763593315774,0.3959,2990.0,2989.9,0.00502108]
[1763593318180,0.1484,2989.5,2989.4,3.2078]
[1763593318384,0.1484,2989.5,2989.1,3.2078]
[1763593318583,0.2475,2989.2,2989.1,3.2078]
[1763593319185,0.00502108,2989.4,2989.1,3.2078]
[1763593319380,0.00502108,2989.4,2989.2,3.255]
[1763593321585,0.2475,2989.3,2989.2,3.255]
[1763593321789,3.3562,2990.0,2989.2,3.255]
[1763593321987,3.3562,2990.0,2989.4,3.2078]
[1763593322186,0.1505,2989.5,2989.4,3.2078]
[1763593323386,0.3953,2989.5,2989.4,3.2078]
[1763593324389,0.1505,2989.5,2989.4,3.2078]
[1763593325090,3.3562,2990.0,2989.4,3.2078]
[1763593325287,0.1484,2991.0,2990.1,3.2078]
[1763593325488,0.1484,2991.0,2990.9,3.2078]
[1763593325794,0.1505,2991.5,2990.9,6.12761044]
[1763593326091,0.1505,2991.5,2991.4,3.2078]
[1763593327588,1.29254652,2992.7,2991.4,3.2078]
[1763593327785,1.29254652,2992.7,2991.9,3.2078]
[1763593328585,0.3953,2992.0,2991.9,3.2078]
[1763593328790,0.2448,2991.8,2991.7,3.2078]
[1763593328986,0.1505,2991.5,2991.0,3.2078]
[1763593329192,0.2448,2991.1,2991.0,3.2078]
[1763593330391,0.3953,2991.0,2990.9,0.00281044]
[1763593331093,6.3953,2991.0,2990.9,0.00281044]
[1763593331394,0.3953,2991.0,2990.9,0.00281044]
[1763593332389,6.3953,2991.0,2990.9,0.00281044]
[1763593332894,0.3953,2991.0,2990.9,0.00281044]
[1763593333290,9.6031,2991.0,2990.9,0.00281044]
[1763593333897,6.3953,2991.0,2990.9,0.00281044]
[1763593336192,0.3953,2991.0,2990.9,0.00281044]
[1763593336595,3.6031,2991.0,2990.9,0.00281044]
[1763593338395,0.3953,2991.0,2990.9,0.00281044]
[1763593341003,0.1505,2991.0,2990.9,0.00281044]
[1763593341195,0.3953,2991.0,2990.9,3.21061044]
[1763593344204,0.1505,2991.0,2990.9,3.21061044]
[1763593346596,5.47490031,2992.1,2990.9,3.75285044]
[1763593346796,0.2021,2991.5,2991.4,3.2078]
[1763593348207,0.5398,2991.5,2991.4,3.2078]
[1763593348606,0.2021,2991.5,2991.4,3.2078]
[1763593349207,0.5398,2991.5,2991.4,3.2078]
[1763593351704,3.2078,2992.1,2991.4,3.2078]
[1763593352015,0.1505,2992.5,2991.9,3.2078]
[1763593352205,2.46920031,2993.0,2992.3,3.2078]
[1763593352404,0.2021,2993.0,2992.4,1.28701228]
[1763593352911,0.2021,2993.0,2992.4,0.00501228]
[1763593352912,0.5254,2992.5,2992.4,0.00501228]
[1763593353318,0.5254,2992.5,2992.0,3.2078]
[1763593353319,0.3273,2992.1,2992.0,3.2078]
[1763593353614,2.59440031,2992.1,2992.0,3.2078]
[1763593354115,2.59440031,2992.1,2992.0,2.19]
[1763593354302,2.59440031,2992.1,2992.0,1.1722]
[1763593354712,0.3273,2991.9,2991.8,0.00501228]
[1763593355015,2.59440031,2991.9,2991.8,0.00501228]
[1763593355212,2.26710031,2991.9,2991.8,0.00501228]
[1763593355708,0.1981,2992.0,2991.8,0.00501228]
[1763593358604,0.3273,2991.9,2991.8,0.00501228]
[1763593360016,0.1981,2992.0,2991.8,0.00501228]
[1763593360621,0.00498293,2992.3,2991.8,0.00501228]
[1763593361112,0.1981,2992.0,2991.8,0.00501228]
[1763593361522,0.1981,2992.0,2991.8,3.24101228]
[1763593363620,0.00498293,2992.3,2991.8,0.00501228]
[1763593363820,0.00498293,2992.3,2992.0,3.2078]
[1763593364126,0.00498293,2992.3,2992.1,3.257]
[1763593365430,0.2021,2993.5,2992.2,10.03308359]
[1763593365431,3.2078,2993.4,2992.2,10.03308359]
[1763593365626,0.2021,2993.5,2992.5,1.76771386]
[1763593365818,0.1981,2992.5,2992.4,3.2078]
[1763593366021,0.1981,2992.5,2992.3,40.8]
[1763593366221,0.1981,2992.5,2992.4,3.258]
[1763593366934,0.5254,2992.5,2992.1,3.2078]
[1763593367226,0.3273,2992.2,2992.1,3.2078]
[1763593367833,0.1981,2992.5,2992.1,3.2078]
[1763593368131,0.1981,2993.0,2992.4,3.2078]
[1763593370132,0.1981,2992.5,2992.4,3.2078]
[1763593370440,0.3273,2992.3,2992.1,3.2078]
[1763593370840,0.3273,2992.2,2992.1,3.2078]
[1763593371139,0.1981,2992.5,2992.1,3.2078]
[1763593373938,0.3273,2992.1,2992.0,3.258]
[1763593374333,0.1981,2992.0,2991.9,3.257]
[1763593374734,0.3273,2991.9,2991.8,0.00501228]
[1763593380440,0.3273,2991.3,2991.2,1.76771386]
[1763593380647,0.1981,2991.5,2991.2,1.76771386]
[1763593380944,0.1981,2992.0,2991.4,4.97551386]
[1763593381238,0.1981,2992.0,2991.8,1.76771386]
[1763593381441,1.228e-05,2992.2,2991.9,3.256]
[1763593381733,3.2078,2993.1,2992.1,3.74983]
[1763593381937,3.2078,2993.1,2992.6,1.771325]
[1763593382141,0.5223,2992.5,2992.4,1.771325]
[1763593382437,0.3261,2992.3,2992.2,5.023325]
[1763593383840,0.3261,2992.3,2992.2,3.252]
[1763593384033,0.1962,2992.5,2992.2,5.023325]
[1763593384736,0.1962,2992.5,2992.1,1.771325]
[1763593384942,0.3261,2992.3,2992.2,3.258]
[1763593387237,0.3261,2991.8,2991.7,3.2078]
[1763593387433,0.1962,2992.5,2991.7,4.979125]
[1763593387632,0.1962,2992.5,2992.0,4.979125]
[1763593387833,0.1962,2992.5,2992.1,1.771325]
[1763593389239,0.1962,2992.5,2992.0,3.2078]
[1763593389540,0.1962,2992.5,2992.3,3.2078]
[1763593390647,0.1981,2993.0,2992.4,0.54198]
[1763593390836,0.1981,2993.0,2992.8,1.77315723]
[1763593391038,3.4059,2993.5,2992.9,4.98095723]
[1763593391240,3.4059,2993.5,2992.5,5.61976667]
[1763593391241,0.1981,2993.5,2993.4,3.2078]
[1763593391436,0.1981,2993.5,2993.4,6.27110838]
[1763593391742,0.1962,2994.0,2993.4,6.27110838]
[1763593391942,0.1962,2994.0,2993.7,1.77023025]
[1763593392334,0.1962,2994.0,2993.6,1.77023025]
[1763593392738,0.3261,2993.7,2993.6,1.77023025]
[1763593392945,0.1962,2994.0,2993.4,6.47010838]
[1763593392946,0.5223,2993.5,2993.4,6.47010838]
[1763593393336,0.1962,2993.5,2993.4,6.47010838]
[1763593393943,0.1962,2994.0,2993.4,6.47010838]
[1763593394148,0.1962,2993.5,2993.4,5.03253863]
[1763593394342,0.1962,2993.5,2993.4,8.24033863]
[1763593395045,0.1962,2993.5,2993.4,4.98233863]
[1763593395353,0.1962,2993.5,2993.4,3.21210838]
[1763593397243,0.5223,2993.5,2993.4,6.46910838]
[1763593397553,0.1962,2993.5,2993.4,6.46910838]
[1763593400454,0.5223,2993.5,2993.4,6.46910838]
[1763593400659,0.5223,2993.5,2993.4,3.21210838]
[1763593400952,0.1962,2993.5,2993.4,3.21210838]
[1763593401752,0.5223,2993.5,2993.4,3.21210838]
[1763593402155,0.5223,2993.5,2993.4,0.00430838]
[1763593404858,3.7301,2993.5,2993.4,0.00430838]
[1763593405651,0.5223,2993.5,2993.4,3.21210838]
[1763593405854,0.5223,2993.5,2993.4,0.00430838]
[1763593406051,0.3261,2992.9,2992.8,3.2078]
[1763593406253,0.3261,2992.6,2992.5,3.2078]
[1763593406451,0.3027,2992.2,2992.1,3.2078]
[1763593407257,0.1911,2992.5,2992.1,3.2078]
[1763593407560,0.00343066,2992.2,2992.1,0.00411922]
[1763593407764,0.00343066,2992.2,2992.1,3.21191922]
[1763593408465,0.30613066,2992.2,2992.1,3.21191922]
[1763593409256,0.00343066,2992.2,2992.1,3.21191922]
[1763593409453,0.30613066,2992.2,2992.1,3.21191922]
[1763593410859,0.00343066,2992.2,2992.1,3.21191922]
[1763593412969,0.30613066,2992.2,2992.1,3.21191922]
[1763593413262,0.00501228,2992.4,2992.1,3.21191922]
[1763593414369,0.00589001,2992.4,2992.1,3.21191922]
[1763593414669,0.3257,2992.2,2992.1,3.21191922]
[1763593415166,0.00589001,2992.4,2991.9,0.00501228]
[1763593415167,0.1881,2992.0,2991.9,0.00501228]
[1763593415368,0.1881,2992.0,2991.9,3.21281228]
[1763593416257,0.1881,2992.0,2991.9,3.21608854]
[1763593419072,0.00589001,2992.4,2991.9,9.21608854]
[1763593419272,0.1962,2993.0,2992.3,3.2078]
[1763593419569,0.3257,2992.4,2992.3,3.2078]
[1763593419873,0.1881,2992.5,2992.3,3.2078]
[1763593420474,0.3257,2992.4,2992.3,3.2078]
[1763593420668,0.32953644,2992.4,2992.3,3.2078]
[1763593422164,0.5138,2992.0,2991.9,0.00828854]
[1763593423173,0.1881,2992.0,2991.9,0.00828854]
[1763593423374,0.00383644,2992.4,2991.9,0.00828854]
[1763593423573,0.1881,2992.0,2991.9,0.00828854]
[1763593427082,0.00383644,2992.4,2991.9,0.00828854]
[1763593427379,0.00383644,2992.4,2992.3,3.2078]
[1763593427580,0.00383644,2992.4,2992.3,4.97803025]
[1763593427783,3.404,2993.5,2992.3,9.74979]
[1763593427980,3.404,2993.5,2992.8,3.2078]
[1763593428979,0.1962,2993.5,2992.8,3.2078]
[1763593430376,0.1962,2993.5,2992.8,4.97403716]
[1763593431984,0.1962,2993.5,2992.8,5.56956667]
[1763593433383,3.2078,2993.8,2992.9,1.77064777]
[1763593433587,0.3257,2993.2,2993.1,3.2078]
[1763593433981,0.1881,2993.5,2993.1,3.2078]
[1763593435990,0.1881,2993.5,2993.0,1.77064777]
[1763593436193,0.1881,2993.5,2993.1,3.2078]
[1763593437286,0.1881,2993.5,2993.1,4.97844777]
[1763593438383,0.5138,2993.5,2993.4,3.2078]
[1763593439289,0.1881,2993.5,2993.4,3.2078]
[1763593439887,0.1881,2994.0,2993.4,14.77154043]
[1763593440089,0.1881,2994.0,2993.9,3.2078]
[1763593440589,0.1881,2994.0,2993.9,6.4618]
[1763593440785,0.3257,2993.8,2993.7,1.7674963]
[1763593441088,0.3257,2993.6,2993.5,6.4618]
[1763593441287,0.3257,2993.6,2993.5,3.2078]
[1763593446497,0.497,2993.5,2993.4,0.00501228]
[1763593449492,0.09560217,2993.5,2993.4,0.00501228]
[1763593449692,0.40120217,2993.5,2993.4,0.00501228]
[1763593453285,0.40120217,2993.5,2993.4,1.18490717]
[1763593454794,1.72882566,2993.5,2993.4,1.18490717]
[1763593455191,0.1881,2994.0,2993.4,3.10013207]
[1763593455492,0.1881,2994.0,2993.7,5.56956667]
[1763593455689,0.1881,2994.0,2993.9,2.36176667]
[1763593456595,0.1881,2994.0,2993.8,2.36176667]
[1763593456895,0.3056,2993.9,2993.8,1.77350542]
[1763593457095,0.1881,2994.0,2993.8,1.77350542]
[1763593457291,0.1881,2994.0,2993.9,1.77350542]
[1763593457488,0.1881,2994.0,2993.7,3.2078]
[1763593457884,0.4937,2994.0,2993.9,1.77372195]
[1763593459791,0.1881,2994.0,2993.8,1.77372195]
[1763593460093,0.3056,2993.8,2993.7,4.98152195]
[1763593460701,0.3056,2993.8,2993.7,3.2078]
[1763593460890,0.3056,2993.8,2993.7,4.98152195]
[1763593462398,0.1881,2994.0,2993.7,4.98152195]
[1763593462598,0.1881,2994.0,2993.8,1.77372195]
[1763593462801,0.1881,2994.0,2993.9,1.77372195]
[1763593462995,0.1881,2994.0,2993.7,3.2078]
[1763593463195,0.1881,2994.0,2993.9,1.77350839]
[1763593463994,0.3056,2993.9,2993.8,1.77350839]
[1763593464593,0.1881,2994.0,2993.8,1.77350839]
[1763593464910,0.3056,2993.9,2993.8,1.18246072]
[1763593465293,0.1881,2994.0,2993.7,3.2078]
[1763593467303,0.1881,2994.0,2993.9,1.77411888]
[1763593467504,0.1881,2994.0,2993.8,2.36176667]
[1763593471010,0.1881,2994.5,2993.8,2.36176667]
[1763593471214,0.4684,2994.5,2994.4,3.2078]
[1763593471513,0.1881,2994.5,2994.4,3.21052897]
[1763593471707,0.1881,2995.0,2994.4,4.98344003]
[1763593471912,0.1881,2995.0,2994.9,3.2078]
[1763593472210,0.1881,2995.0,2994.9,4.38810553]
[1763593473206,0.4684,2995.0,2994.9,4.38810553]
[1763593473411,0.1881,2995.0,2994.9,4.38810553]
[1763593474312,0.1881,2995.0,2994.9,3.2078]
[1763593475314,0.89793627,2996.6,2995.4,0.54143]
[1763593475514,0.1732,2997.0,2996.1,3.2078]
[1763593475718,0.1732,2997.0,2996.4,3.2078]
[1763593476013,0.4507,2996.5,2996.1,7.4286601]
[1763593476221,0.1735,2996.5,2996.1,3.043]
[1763593476821,0.1735,2996.5,2996.3,3.2078]
[1763593477426,0.2772,2996.4,2996.3,3.2078]
[1763593477609,0.1732,2996.0,2995.9,1.1778601]
[1763593477815,0.1732,2996.0,2995.8,3.251]
[1763593478315,0.1732,2996.0,2995.7,0.00501228]
[1763593480123,3.2078,2995.9,2995.7,0.00501228]
[1763593480319,0.1732,2995.5,2995.1,3.2078]
[1763593480514,0.2772,2995.2,2995.1,3.2078]
[1763593480718,2.26815693,2995.2,2995.1,3.2078]
[1763593482721,0.00501228,2995.4,2995.1,3.2078]
[1763593483118,0.1732,2996.0,2995.1,4.3856601]
[1763593483426,0.1732,2995.5,2995.4,3.2078]
[1763593483822,0.1732,2995.5,2995.4,5.7238]
[1763593484024,0.1732,2996.0,2995.4,5.7238]
[1763593484834,0.1732,2995.5,2995.4,5.7238]
[1763593485437,0.4504,2995.5,2995.1,3.2078]
[1763593485638,0.4504,2995.5,2995.1,6.4598]
[1763593486138,0.2772,2995.2,2995.1,6.4598]
[1763593486340,0.1732,2995.5,2995.1,6.4598]
[1763593486934,0.1732,2995.0,2994.9,0.00501228]
[1763593488039,0.4504,2995.0,2994.9,0.00501228]
[1763593489442,0.1732,2995.0,2994.9,0.00501228]
[1763593489837,0.4504,2995.0,2994.9,0.00501228]
[1763593490437,3.6582,2995.0,2994.4,0.00272897]
[1763593490645,0.4504,2994.5,2994.4,0.00272897]
[1763593490938,3.381,2995.0,2994.4,0.00272897]
[1763593491135,0.1732,2995.0,2994.8,3.2078]
[1763593491342,0.1732,2995.5,2994.8,6.6816601]
[1763593491644,0.00501228,2995.4,2994.9,1.18287238]
[1763593491843,0.00501228,2995.4,2995.1,3.2078]
[1763593492443,0.00501228,2995.4,2995.0,1.1778601]
[1763593493141,0.00501228,2995.4,2995.1,3.2078]
[1763593493944,0.00501228,2995.4,2995.0,1.1778601]
[1763593494138,0.00501228,2995.4,2994.9,0.00501228]
[1763593494139,0.4504,2995.0,2994.9,0.00501228]
[1763593498148,0.1732,2995.0,2994.9,0.00501228]
[1763593499950,0.1732,2995.0,2994.9,1.18287238]
[1763593500541,0.1732,2995.0,2994.9,0.00501228]
[1763593500746,0.1732,2995.0,2994.9,1.18287238]
[1763593501054,0.00501228,2995.4,2994.9,1.18287238]
[1763593501351,0.1732,2995.0,2994.9,1.18287238]
[1763593501549,0.4504,2995.0,2994.9,1.18287238]
[1763593501749,0.00501228,2995.4,2994.9,6.54653228]
[1763593501952,3.381,2996.5,2995.3,3.2078]
[1763593502146,3.381,2996.5,2995.9,4.38489159]
[1763593502341,0.1732,2996.5,2995.9,4.97343739]
[1763593503353,0.2439,2995.9,2995.8,1.17626907]
[1763593503555,0.2439,2995.7,2995.5,1.76563739]
[1763593503951,0.2439,2995.6,2995.4,5.01663739]
[1763593504148,0.1572,2995.5,2995.3,4.97343739]
[1763593504356,0.1572,2995.5,2995.2,1.17716653]
[1763593504853,0.2439,2995.3,2995.2,1.17716653]
[1763593505252,0.1732,2996.0,2995.2,1.76563739]
[1763593505456,0.1732,2996.0,2995.5,4.38419981]
[1763593505657,0.2439,2995.6,2995.5,3.2078]
[1763593506053,0.1732,2996.0,2995.5,3.2078]
[1763593506245,0.1732,2996.5,2995.8,3.2078]
[1763593506449,0.1732,2996.5,2996.2,4.38419981]
[1763593506660,0.1732,2996.5,2996.3,1.17639981]
[1763593506859,0.1732,2996.5,2996.3,1.76459972]
[1763593507057,0.1732,2997.0,2996.4,1.76459972]
[1763593507259,0.1732,2997.0,2996.7,3.2078]
[1763593507454,0.1732,2997.0,2996.7,3.21085667]
[1763593507658,0.1732,2997.0,2996.7,4.38676006]
[1763593507852,0.1732,2997.0,2996.8,1.17590339]